fUSD/lending_fUSD_20250113
["ID","MTS","AMOUNT","RATE_DAILY","PERIOD"]
[348846395,1736805041948,-18311.73132829,9.973e-05,2]
[348846396,1736805041958,-796.07104025,9.974e-05,2]
[348846397,1736805041967,-2562.32956027,9.974e-05,2]
[348846398,1736805041977,-6801.53582175,9.974e-05,2]
[348846399,1736805041989,-652.07344724,9.974e-05,2]
[348846400,1736805041999,-200.0,9.974e-05,2]
[348846401,1736805042008,-1726.69381305,9.974e-05,2]
[348846402,1736805042019,-15646.9189667,9.974e-05,2]
[348846403,1736805042031,-266.06591,9.974e-05,2]
[348846404,1736805042047,-672.05263854,9.974e-05,2]
[348846405,1736805042056,-807.60952846,9.974e-05,2]
[348846406,1736805042069,-2198.98756785,9.974e-05,2]
[348846407,1736805042079,-3017.47116095,9.974e-05,2]
[348846408,1736805042273,-1647.63935539,9.974e-05,2]
[348846409,1736805042283,-265.87481843,9.974e-05,2]
[348846410,1736805042292,-4819.60147252,9.974e-05,2]
[348846411,1736805042312,-1322.5644091,9.974e-05,2]
[348846412,1736805042325,-4788.26569755,9.974e-05,2]
[348846413,1736805042334,-200.0,9.974e-05,2]
[348846414,1736805042345,-19691.66221514,9.974e-05,2]
[348846415,1736805042356,-200.0,9.974e-05,2]
[348846416,1736805042366,-1267.19959463,9.975e-05,2]
[348846417,1736805042377,-4521.87534376,9.975e-05,2]
[348846418,1736805042389,-1964.15764256,9.975e-05,2]
[348846419,1736805042400,-699.0447858,9.975e-05,2]
[348846420,1736805042410,-3423.72721968,9.975e-05,2]
[348846421,1736805042422,-1098.14812408,9.975e-05,2]
[348846422,1736805042431,-564.18268154,9.975e-05,2]
[348846423,1736805042442,-134.86210426,9.975e-05,2]
[348846424,1736805042450,-3750.80029265,9.975e-05,2]
[348846425,1736805042460,-2518.14918847,9.975e-05,2]
[348846426,1736805042468,-8852.25487517,9.975e-05,2]
[348846427,1736805042479,-1949.14999894,9.975e-05,2]
[348846428,1736805042491,-807.91710743,9.975e-05,2]
[348846429,1736805042502,-517.8601741,9.975e-05,2]
[348846430,1736805042513,-261.89787837,9.975e-05,2]
[348846431,1736805042544,-103030.81450199,9.975e-05,2]
[348846432,1736805042553,-9005.79541753,9.976e-05,2]
[348846433,1736805042562,-30809.50024842,9.976e-05,2]
[348846434,1736805042571,-1159.03106829,9.976e-05,2]
[348846435,1736805042580,-1964.15764256,9.976e-05,2]
[348846436,1736805042589,-867.58431765,9.976e-05,2]
[348846437,1736805042598,-1267.19959463,9.976e-05,2]
[348846438,1736805042607,-3799.74312979,9.976e-05,2]
[348846439,1736805042616,-200.0,9.976e-05,2]
[348846440,1736805042625,-4539.34816613,9.976e-05,2]
[348846441,1736805042634,-3750.80029265,9.976e-05,2]
[348846442,1736805042643,-3340.85236746,9.976e-05,2]
[348846443,1736805042652,-200.0,9.976e-05,2]
[348846444,1736805042662,-15672.88350652,9.976e-05,2]
[348846445,1736805042673,-699.0447858,9.976e-05,2]
[348846446,1736805042682,-232.54148511,9.976e-05,2]
[348846447,1736805042691,-792.53222544,9.976e-05,2]
[348846448,1736805042701,-10930.43157917,9.976e-05,2]
[348846449,1736805042711,-232.54148511,9.976e-05,2]
[348846450,1736805042720,-699.0447858,9.977e-05,2]
[348846451,1736805042730,-2283.79386389,9.977e-05,2]
[348846453,1736805042740,-4417.76939509,9.977e-05,2]
[348846455,1736805042750,-509.7712596,9.977e-05,2]
[348846457,1736805042761,-642.9165177,9.977e-05,2]
[348846458,1736805042771,-509.7712596,9.977e-05,2]
[348846460,1736805042781,-200.0,9.977e-05,2]
[348846461,1736805042791,-115419.894536,9.977e-05,2]
[348846462,1736805042800,-200.0,9.978e-05,2]
[348846463,1736805042809,-124155.56433824,9.978e-05,2]
[348846464,1736805042819,-200.0,9.978e-05,2]
[348846465,1736805042829,-15672.88350652,9.978e-05,2]
[348846467,1736805042839,-7758.62176255,9.978e-05,2]
[348846469,1736805042849,-18193.04295012,9.978e-05,2]
[348846470,1736805042858,-200.0,9.978e-05,2]
[348846471,1736805042867,-12718.23778607,9.978e-05,2]
[348846472,1736805042878,-2777.21498558,9.978e-05,2]
[348846473,1736805042889,-792.53222544,9.978e-05,2]
[348846474,1736805042899,-3750.80029265,9.978e-05,2]
[348846475,1736805042909,-115419.894536,9.978e-05,2]
[348846476,1736805042919,-2777.21498558,9.979e-05,2]
[348846478,1736805042930,-200.0,9.979e-05,2]
[348846479,1736805042939,-1513.74168655,9.979e-05,2]
[348846480,1736805042948,-200.0,9.979e-05,2]
[348846482,1736805042958,-4539.34816613,9.979e-05,2]
[348846484,1736805042967,-19691.66221514,9.979e-05,2]
[348846485,1736805042976,-5648.38314064,9.979e-05,2]
[348846486,1736805042986,-200.0,9.979e-05,2]
[348846487,1736805042996,-9005.79541753,9.979e-05,2]
[348846488,1736805043005,-232.54148511,9.979e-05,2]
[348846489,1736805043015,-526.77631734,9.979e-05,2]
[348846490,1736805043025,-1409.81519957,9.98e-05,2]
[348846491,1736805043036,-3340.85236746,9.98e-05,2]
[348846492,1736805043051,-1533.22927706,9.98e-05,2]
[348846493,1736805043060,-18311.73132829,9.98e-05,2]
[348846494,1736805043070,-200.0,9.98e-05,2]
[348846495,1736805043080,-50766.77646458,9.98e-05,2]
[348846496,1736805043091,-18193.04295012,9.98e-05,2]
[348846497,1736805043101,-200.0,9.98e-05,2]
[348846498,1736805043115,-200.0,9.98e-05,2]
[348846499,1736805043125,-200.0,9.98e-05,2]
[348846500,1736805043135,-642.9165177,9.981e-05,2]
[348846501,1736805043145,-30809.50024842,9.981e-05,2]
[348846502,1736805043155,-867.58431765,9.981e-05,2]
[348846503,1736805043164,-5648.38314064,9.981e-05,2]
[348846504,1736805043174,-200.0,9.981e-05,2]
[348846505,1736805043184,-2565.22643854,9.981e-05,2]
[348846506,1736805043193,-43099.40224379,9.981e-05,2]
[348846507,1736805043203,-2283.79386389,9.981e-05,2]
[348846508,1736805043212,-7758.62176255,9.981e-05,2]
[348846509,1736805043222,-1267.19959463,9.981e-05,2]
[348846510,1736805043232,-3208.14538586,9.981e-05,2]
[348846511,1736805043241,-3750.80029265,9.982e-05,2]
[348846512,1736805043251,-2518.14918847,9.982e-05,2]
[348846513,1736805043260,-792.53222544,9.982e-05,2]
[348846514,1736805043269,-18193.04295012,9.982e-05,2]
[348846515,1736805043278,-200.0,9.982e-05,2]
[348846516,1736805043287,-200.0,9.982e-05,2]
[348846517,1736805043297,-796.07104025,9.982e-05,2]
[348846518,1736805043306,-3208.14538586,9.982e-05,2]
[348846519,1736805043315,-2777.21498558,9.982e-05,2]
[348846520,1736805043325,-2565.22643854,9.982e-05,2]
[348846521,1736805043334,-200.0,9.982e-05,2]
[348846522,1736805043343,-9005.79541753,9.983e-05,2]
[348846523,1736805043354,-24388.7636092,9.983e-05,2]
[348846524,1736805043363,-7758.62176255,9.983e-05,2]
[348846525,1736805043372,-232.54148511,9.983e-05,2]
[348846526,1736805043382,-2283.79386389,9.983e-05,2]
[348846527,1736805043391,-1159.03106829,9.983e-05,2]
[348846528,1736805043400,-19691.66221514,9.983e-05,2]
[348846529,1736805043410,-56079.94007246,9.983e-05,2]
[348846530,1736805043420,-20432.87737517,9.983e-05,2]
[348846531,1736805043429,-3340.85236746,9.983e-05,2]
[348846532,1736805043438,-56079.94007246,9.983e-05,2]
[348846534,1736805043448,-7453.60926899,9.983e-05,2]
[348846535,1736805043457,-200.0,9.983e-05,2]
[348846536,1736805043466,-1030.00059857,9.983e-05,2]
[348846537,1736805043475,-200.0,9.983e-05,2]
[348846538,1736805043485,-1409.81519957,9.984e-05,2]
[348846539,1736805043494,-867.58431765,9.984e-05,2]
[348846540,1736805043504,-200.0,9.984e-05,2]
[348846541,1736805043513,-792.53222544,9.984e-05,2]
[348846542,1736805043523,-12718.23778607,9.984e-05,2]
[348846543,1736805043533,-200.0,9.984e-05,2]
[348846544,1736805043542,-1513.74168655,9.984e-05,2]
[348846546,1736805043552,-56079.94007246,9.984e-05,2]
[348846547,1736805043561,-1513.74168655,9.984e-05,2]
[348846548,1736805043571,-200.0,9.985e-05,2]
[348846551,1736805043580,-3799.74312979,9.985e-05,2]
[348846552,1736805043589,-509.7712596,9.985e-05,2]
[348846553,1736805043600,-24388.7636092,9.985e-05,2]
[348846554,1736805043609,-10930.43157917,9.985e-05,2]
[348846555,1736805043619,-1030.00059857,9.985e-05,2]
[348846556,1736805043628,-12718.23778607,9.985e-05,2]
[348846557,1736805043638,-200.0,9.985e-05,2]
[348846558,1736805043647,-200.0,9.985e-05,2]
[348846559,1736805043657,-232.54148511,9.985e-05,2]
[348846560,1736805043666,-1409.81519957,9.985e-05,2]
[348846561,1736805043676,-200.0,9.985e-05,2]
[348846562,1736805043685,-7671.70761265,9.985e-05,2]
[348846563,1736805043694,-265.87481843,9.986e-05,2]
[348846564,1736805043703,-867.58431765,9.986e-05,2]
[348846565,1736805043713,-867.58431765,9.986e-05,2]
[348846566,1736805043723,-200.0,9.986e-05,2]
[348846567,1736805043732,-200.0,9.986e-05,2]
[348846568,1736805043742,-5648.38314064,9.986e-05,2]
[348846569,1736805043752,-1513.74168655,9.986e-05,2]
[348846570,1736805043761,-3340.85236746,9.986e-05,2]
[348846571,1736805043770,-265.87481843,9.986e-05,2]
[348846572,1736805043780,-24388.7636092,9.986e-05,2]
[348846573,1736805043789,-1964.15764256,9.986e-05,2]
[348846574,1736805043799,-200.0,9.987e-05,2]
[348846575,1736805043808,-509.7712596,9.987e-05,2]
[348846576,1736805043818,-43099.40224379,9.987e-05,2]
[348846577,1736805043828,-30809.50024842,9.987e-05,2]
[348846578,1736805043838,-4539.34816613,9.987e-05,2]
[348846579,1736805043848,-200.0,9.987e-05,2]
[348846580,1736805043857,-3208.14538586,9.987e-05,2]
[348846581,1736805043866,-4417.76939509,9.987e-05,2]
[348846582,1736805043876,-509.7712596,9.987e-05,2]
[348846583,1736805043886,-9005.79541753,9.987e-05,2]
[348846584,1736805043897,-3340.85236746,9.988e-05,2]
[348846585,1736805043907,-2283.79386389,9.988e-05,2]
[348846586,1736805043916,-115419.894536,9.988e-05,2]
[348846587,1736805043925,-2518.14918847,9.988e-05,2]
[348846588,1736805043935,-2562.32956027,9.988e-05,2]
[348846589,1736805043945,-5648.38314064,9.988e-05,2]
[348846590,1736805043954,-1964.15764256,9.988e-05,2]
[348846591,1736805043963,-3750.80029265,9.988e-05,2]
[348846592,1736805043974,-1513.74168655,9.988e-05,2]
[348846593,1736805043983,-3750.80029265,9.988e-05,2]
[348846594,1736805043992,-7671.70761265,9.988e-05,2]
[348846595,1736805044002,-200.0,9.988e-05,2]
[348846596,1736805044011,-265.87481843,9.988e-05,2]
[348846597,1736805044021,-56079.94007246,9.988e-05,2]
[348846598,1736805044031,-200.0,9.989e-05,2]
[348846599,1736805044041,-12718.23778607,9.989e-05,2]
[348846600,1736805044053,-2562.32956027,9.989e-05,2]
[348846601,1736805044062,-526.77631734,9.989e-05,2]
[348846602,1736805044072,-3799.74312979,9.989e-05,2]
[348846603,1736805044082,-200.0,9.99e-05,2]
[348846604,1736805044092,-4521.87534376,9.99e-05,2]
[348846605,1736805044102,-7758.62176255,9.99e-05,2]
[348846606,1736805044111,-1409.81519957,9.99e-05,2]
[348846607,1736805044122,-19691.66221514,9.99e-05,2]
[348846608,1736805044131,-30809.50024842,9.99e-05,2]
[348846609,1736805044140,-1030.00059857,9.99e-05,2]
[348846610,1736805044150,-12718.23778607,9.99e-05,2]
[348846611,1736805044160,-4539.34816613,9.99e-05,2]
[348846612,1736805044169,-18193.04295012,9.99e-05,2]
[348846613,1736805044179,-3340.85236746,9.99e-05,2]
[348846614,1736805044188,-200.0,9.99e-05,2]
[348846615,1736805044198,-200.0,9.991e-05,2]
[348846616,1736805044207,-7758.62176255,9.991e-05,2]
[348846617,1736805044217,-2565.22643854,9.991e-05,2]
[348846618,1736805044227,-3208.14538586,9.991e-05,2]
[348846619,1736805044236,-20432.87737517,9.991e-05,2]
[348846620,1736805044247,-200.0,9.991e-05,2]
[348846621,1736805044256,-2777.21498558,9.991e-05,2]
[348846622,1736805044265,-3208.14538586,9.991e-05,2]
[348846623,1736805044274,-699.0447858,9.991e-05,2]
[348846624,1736805044283,-5648.38314064,9.991e-05,2]
[348846625,1736805044292,-1159.03106829,9.991e-05,2]
[348846626,1736805044301,-4417.76939509,9.992e-05,2]
[348846627,1736805044311,-20432.87737517,9.992e-05,2]
[348846628,1736805044321,-4521.87534376,9.992e-05,2]
[348846629,1736805044332,-2777.21498558,9.992e-05,2]
[348846630,1736805044341,-526.77631734,9.992e-05,2]
[348846631,1736805044354,-200.0,9.992e-05,2]
[348846632,1736805044363,-56079.94007246,9.992e-05,2]
[348846633,1736805044372,-30809.50024842,9.992e-05,2]
[348846634,1736805044382,-7671.70761265,9.992e-05,2]
[348846635,1736805044391,-5479.2074612,9.992e-05,2]
[348846636,1736805044401,-1221.3886807,9.992e-05,2]
[348846637,1736805044410,-841.1718143,9.992e-05,2]
[348846638,1736805044420,-275.7527637,9.992e-05,2]
[348846639,1736805044429,-200.0,9.992e-05,2]
[348846640,1736805044439,-796.07104025,9.992e-05,2]
[348846641,1736805044449,-2562.32956027,9.992e-05,2]
[348846642,1736805044460,-2562.32956027,9.992e-05,2]
[348846643,1736805044469,-200.0,9.992e-05,2]
[348846644,1736805044479,-642.9165177,9.992e-05,2]
[348846645,1736805044488,-115419.894536,9.992e-05,2]
[348846646,1736805044498,-18193.04295012,9.992e-05,2]
[348846647,1736805044508,-7671.70761265,9.993e-05,2]
[348846648,1736805044519,-1267.19959463,9.993e-05,2]
[348846649,1736805044529,-18311.73132829,9.993e-05,2]
[348846650,1736805044540,-2565.22643854,9.993e-05,2]
[348846651,1736805044550,-232.54148511,9.993e-05,2]
[348846652,1736805044559,-4417.76939509,9.993e-05,2]
[348846653,1736805044569,-2565.22643854,9.993e-05,2]
[348846654,1736805044580,-6349.3895012,9.993e-05,2]
[348846655,1736805044590,-1415.3639045,9.993e-05,2]
[348846656,1736805044601,-941.2219336,9.993e-05,2]
[348846657,1736805044610,-1784.71,9.993e-05,2]
[348846658,1736805044620,-1522.63,9.993e-05,2]
[348846659,1736805044631,-308.5511724,9.993e-05,2]
[348846660,1736805044642,-2170.12,9.993e-05,2]
[348846661,1736805044652,-1506.08,9.993e-05,2]
[348846662,1736805044662,-3583.85,9.993e-05,2]
[348846663,1736805044671,-9990.02,9.993e-05,2]
[348846664,1736805044681,-1376.66,9.993e-05,2]
[348846665,1736805044690,-200.0,9.993e-05,2]
[348846666,1736805044699,-200.0,9.993e-05,2]
[348846667,1736805044709,-12718.23778607,9.993e-05,2]
[348846668,1736805044719,-7453.60926899,9.994e-05,2]
[348846669,1736805044729,-1409.81519957,9.994e-05,2]
[348846670,1736805044740,-43099.40224379,9.994e-05,2]
[348846671,1736805044751,-792.53222544,9.994e-05,2]
[348846672,1736805044760,-18311.73132829,9.994e-05,2]
[348846673,1736805044770,-20432.87737517,9.994e-05,2]
[348846674,1736805044780,-20432.87737517,9.994e-05,2]
[348846675,1736805044790,-56079.94007246,9.994e-05,2]
[348846676,1736805044801,-2518.14918847,9.994e-05,2]
[348846677,1736805044811,-200.0,9.994e-05,2]
[348846678,1736805044821,-4417.76939509,9.994e-05,2]
[348846679,1736805044830,-9005.79541753,9.994e-05,2]
[348846680,1736805044841,-24388.7636092,9.995e-05,2]
[348846681,1736805044852,-3799.74312979,9.995e-05,2]
[348846682,1736805044861,-43099.40224379,9.995e-05,2]
[348846683,1736805044871,-200.0,9.995e-05,2]
[348846684,1736805044881,-1030.00059857,9.995e-05,2]
[348846685,1736805044890,-4539.34816613,9.995e-05,2]
[348846686,1736805044900,-2283.79386389,9.995e-05,2]
[348846687,1736805044909,-1159.03106829,9.995e-05,2]
[348846688,1736805044919,-1964.15764256,9.995e-05,2]
[348846689,1736805044929,-526.77631734,9.995e-05,2]
[348846690,1736805044939,-200.0,9.995e-05,2]
[348846691,1736805044948,-642.9165177,9.995e-05,2]
[348846692,1736805044957,-2283.79386389,9.995e-05,2]
[348846693,1736805044967,-7453.60926899,9.996e-05,2]
[348846694,1736805044976,-7453.60926899,9.996e-05,2]
[348846695,1736805044986,-265.87481843,9.996e-05,2]
[348846696,1736805044996,-526.77631734,9.996e-05,2]
[348846697,1736805045006,-18193.04295012,9.996e-05,2]
[348846698,1736805045016,-124155.56433824,9.996e-05,2]
[348846699,1736805045025,-20432.87737517,9.996e-05,2]
[348846700,1736805045035,-185.73316756,9.996e-05,2]
[348846701,1736805045049,-14741.46408221,9.996e-05,2]
[348846702,1736805045059,-191.03776272,9.996e-05,2]
[348846703,1736805045069,-43099.40224379,9.996e-05,2]
[348846704,1736805045079,-19691.66221514,9.996e-05,2]
[348846705,1736805045090,-200.0,9.996e-05,2]
[348846706,1736805045100,-2777.21498558,9.996e-05,2]
[348846707,1736805045111,-509.7712596,9.997e-05,2]
[348846708,1736805045121,-115419.894536,9.997e-05,2]
[348846709,1736805045131,-7453.60926899,9.997e-05,2]
[348846710,1736805045140,-792.53222544,9.997e-05,2]
[348846711,1736805045151,-18311.73132829,9.997e-05,2]
[348846712,1736805045160,-4539.34816613,9.997e-05,2]
[348846713,1736805045170,-2562.32956027,9.997e-05,2]
[348846714,1736805045180,-2518.14918847,9.997e-05,2]
[348846715,1736805045189,-124155.56433824,9.997e-05,2]
[348846716,1736805045199,-30809.50024842,9.997e-05,2]
[348846717,1736805045209,-15672.88350652,9.997e-05,2]
[348846718,1736805045219,-124155.56433824,9.997e-05,2]
[348846719,1736805045229,-3799.74312979,9.998e-05,2]
[348846720,1736805045238,-642.9165177,9.998e-05,2]
[348846721,1736805045248,-4521.87534376,9.998e-05,2]
[348846722,1736805045258,-24388.7636092,9.998e-05,2]
[348846723,1736805045268,-1267.19959463,9.998e-05,2]
[348846724,1736805045278,-265.87481843,9.998e-05,2]
[348846725,1736805045288,-10930.43157917,9.998e-05,2]
[348846726,1736805045297,-1030.00059857,9.998e-05,2]
[348846727,1736805045306,-1159.03106829,9.998e-05,2]
[348846728,1736805045316,-10930.43157917,9.998e-05,2]
[348846729,1736805045326,-796.07104025,9.998e-05,2]
[348846730,1736805045335,-699.0447858,9.999e-05,2]
[348846731,1736805045345,-200.0,9.999e-05,2]
[348846732,1736805045354,-1513.74168655,9.999e-05,2]
[348846733,1736805045364,-796.07104025,9.999e-05,2]
[348846734,1736805045373,-500.0,9.999e-05,2]
[348846735,1736805045382,-124155.56433824,9.999e-05,2]
[348846736,1736805045392,-124155.56433824,9.999e-05,2]
[348846737,1736805045402,-200.0,9.999e-05,2]
[348846738,1736805045411,-43099.40224379,0.0001,2]
[348846739,1736805045420,-1964.15764256,0.0001,2]
[348846740,1736805045430,-200.0,0.0001,2]
[348846741,1736805045439,-15672.88350652,0.0001,2]
[348846742,1736805045449,-15672.88350652,0.0001,2]
[348846743,1736805045459,-200.0,0.0001,2]
[348846744,1736805045468,-3799.74312979,0.0001,2]
[348846745,1736805045478,-197594.1671713,0.0001,2]
[348846746,1736805045488,-162.70392267,0.0001,2]
[348846747,1736805045497,-23214.35255203,0.0001,2]
[348846748,1736805045507,-134753.00988154,0.0001,2]
[348846749,1736805045517,-2128437.04384516,0.0001,2]
[348846771,1736805046583,-1002.94765454,9.899e-05,3]
[348846772,1736805046592,-428.10574546,0.0001,2]
[348846773,1736805046607,-272.0,0.0001,2]
[348846774,1736805046618,-530.07242623,0.0001,2]
[348846775,1736805046636,-675.99532,0.0001,2]
[348846776,1736805046647,-387.90257756,0.0001,2]
[348846777,1736805046660,-5755.96575606,0.0001,2]
[348846778,1736805046673,-485.22792181,0.0001,2]
[348846779,1736805046686,-5165.84602746,0.0001,2]
[348846780,1736805046698,-10153.0,0.0001,2]
[348846781,1736805046709,-7025.61758418,0.0001,2]
[348846782,1736805046727,-7308.8959674,0.0001,2]
[348846783,1736805046739,-112587.87425084,0.0001,2]
[348846784,1736805046757,-3813.58582268,0.0001,2]
[348846785,1736805049993,-3269.56205348,0.0001,2]
[348846786,1736805050005,-1936.5,0.0001,2]
[348846787,1736805050016,-10983.23,0.0001,2]
[348846788,1736805050028,-608.91456795,0.0001,2]
[348846789,1736805050419,-500.0,9.897e-05,2]
[348846790,1736805050429,-778.8630108,0.0001,2]
[348846791,1736805050440,-93518.12,0.0001,2]
[348846792,1736805050451,-6366.75080758,0.0001,2]
[348846793,1736805050461,-49823.20236142,0.0001,2]
[348846794,1736805050472,-347.817498,0.0001,2]
[348846795,1736805050499,-17790.75593074,0.0001,2]
[348846796,1736805050509,-2328.66043636,0.0001,2]
[348846797,1736805050524,-351444.41740278,0.0001,2]
[348846798,1736805050536,-12472.71638478,0.0001,2]
[348846799,1736805050547,-917.47923314,0.0001,2]
[348846800,1736805050832,-321.55127505,9.897e-05,2]
[348846801,1736805050846,-139.59852509,9.897e-05,2]
[348846802,1736805050855,-500.0,9.898e-05,2]
[348846803,1736805050864,-229.25574251,0.0001,2]
[348846804,1736805050875,-3501.00025,0.0001,2]
[348846805,1736805050885,-7711.05653839,0.0001,2]
[348846806,1736805050900,-13146.26,0.0001,2]
[348846807,1736805050910,-384.16329,0.0001,2]
[348846808,1736805050921,-501.32214652,0.0001,2]
[348846809,1736805050932,-966.46,0.0001,2]
[348846810,1736805050943,-1078.35727273,0.0001,2]
[348846811,1736805275739,155.79,7.174e-05,2]
[348846812,1736805456248,959.33,8.219e-05,2]
[348846814,1736805673319,-270.41,8.783e-05,2]
[348846815,1736805889347,4440.0,0.00021,30]
[348846816,1736805968138,282686.33415072,0.00020976,30]
[348846817,1736806006080,-163.41,8.767e-05,2]
[348846828,1736806063371,1574.0,0.00018,30]
[348846829,1736806096327,-161.87,8.796e-05,2]
[348846830,1736806119436,-250.0,8.728e-05,2]
[348846831,1736806209231,-263.0,8.728e-05,2]
[348846837,1736806232291,-479.14,8.829e-05,2]
[348846838,1736806232301,-527.0152966,8.876e-05,2]
[348846839,1736806232313,-472.9847034,8.876e-05,2]
[348846840,1736806232323,-200.0,8.908e-05,2]
[348846841,1736806232332,-8.2373284,8.941e-05,2]
[348846842,1736806232343,-241.7626716,8.941e-05,2]
[348846843,1736806232352,-250.0,8.953e-05,2]
[348846844,1736806232361,-300.0,8.967e-05,2]
[348846845,1736806232370,-6258.91579706,8.968e-05,2]
[348846846,1736806232443,-328.995,8.968e-05,2]
[348846847,1736806232454,-17312.08920294,8.968e-05,2]
[348846848,1736806232464,-1293.25,8.968e-05,2]
[348846849,1736806232475,-637.92,8.988e-05,2]
[348846850,1736806232484,-186.33,9.032e-05,2]
[348846851,1736806232493,-543.43077849,9.255e-05,2]
[348846852,1736806232502,-301.04,9.455e-05,2]
[348846853,1736806232511,-150.0,9.455e-05,2]
[348846854,1736806232520,-150.31,9.455e-05,2]
[348846855,1736806232530,-150.0,9.455e-05,2]
[348846856,1736806232539,-437.23,9.455e-05,2]
[348846857,1736806232548,-150.0,9.455e-05,2]
[348846858,1736806232557,-437.23,9.455e-05,2]
[348846859,1736806232566,-150.0,9.455e-05,2]
[348846860,1736806232575,-437.23,9.455e-05,2]
[348846861,1736806232584,-150.0,9.455e-05,2]
[348846862,1736806232594,-150.0,9.455e-05,2]
[348846863,1736806232603,-150.0,9.455e-05,2]
[348846864,1736806232612,-150.0,9.455e-05,2]
[348846865,1736806232622,-437.23,9.455e-05,2]
[348846866,1736806232632,-150.0,9.455e-05,2]
[348846867,1736806232642,-437.23,9.455e-05,2]
[348846868,1736806232654,-150.0,9.455e-05,2]
[348846869,1736806232663,-206.86,9.455e-05,2]
[348846870,1736806232672,-301.13,9.455e-05,2]
[348846871,1736806232681,-220.339,9.5e-05,2]
[348846872,1736806232690,-5187.18453049,9.507e-05,2]
[348846873,1736806232710,-9203.25639999,9.507e-05,2]
[348846874,1736806232737,-10267.55906952,9.507e-05,2]
[348846875,1736806232747,-629.10260947,9.698e-05,2]
[348846876,1736806232757,-310.04,9.796e-05,2]
[348846877,1736806232766,-3140.92073481,9.797e-05,2]
[348846878,1736806232777,-51.55956519,9.797e-05,2]
[348846879,1736806232787,-403.51043481,9.803e-05,2]
[348846880,1736806232811,-2824.27706916,9.803e-05,2]
[348846881,1736806232821,-420.0,9.864e-05,2]
[348846882,1736806232830,-6869.17926084,9.882e-05,2]
[348846883,1736806232841,-28752.88487107,9.882e-05,2]
[348846884,1736806232851,-500.0,9.895e-05,2]
[348846886,1736806232861,-898.25,9.895e-05,2]
[348846888,1736806232870,-2386.53,9.895e-05,2]
[348846890,1736806232880,-3131.65,9.895e-05,2]
[348846892,1736806232890,-885.73,9.895e-05,2]
[348846894,1736806232901,-1815.5,9.895e-05,2]
[348846896,1736806232910,-500.0,9.895e-05,2]
[348846898,1736806232919,-1178.12,9.895e-05,2]
[348846900,1736806232928,-508.64,9.895e-05,2]
[348846902,1736806232937,-2769.03,9.895e-05,2]
[348846904,1736806232946,-1604.19,9.895e-05,2]
[348846906,1736806232955,-500.0,9.895e-05,2]
[348846908,1736806232965,-772.34,9.895e-05,2]
[348846910,1736806232974,-500.0,9.895e-05,2]
[348846912,1736806232983,-500.0,9.895e-05,2]
[348846914,1736806232992,-500.0,9.895e-05,2]
[348846916,1736806233001,-1701.05,9.895e-05,2]
[348846917,1736806233010,-796.47,9.895e-05,2]
[348846919,1736806233020,-500.0,9.896e-05,2]
[348846921,1736806233032,-500.0,9.896e-05,2]
[348846923,1736806233043,-808.61,9.896e-05,2]
[348846925,1736806233054,-327.88970446,9.896e-05,2]
[348846927,1736806233064,-500.0,9.896e-05,2]
[348846929,1736806233073,-500.0,9.896e-05,2]
[348846931,1736806233083,-500.0,9.896e-05,2]
[348846934,1736806233095,-501.1076926,9.896e-05,2]
[348846937,1736806233106,-501.38540802,9.896e-05,2]
[348846940,1736806233115,-500.0,9.896e-05,2]
[348846943,1736806233125,-500.0,9.896e-05,2]
[348846946,1736806233134,-500.0,9.896e-05,2]
[348846949,1736806233143,-501.31056126,9.896e-05,2]
[348846952,1736806233156,-500.0,9.896e-05,2]
[348846954,1736806233165,-501.72286133,9.896e-05,2]
[348846956,1736806233176,-500.0,9.896e-05,2]
[348846958,1736806233186,-500.0,9.896e-05,2]
[348846960,1736806233195,-500.0,9.896e-05,2]
[348846962,1736806233205,-500.0,9.896e-05,2]
[348846964,1736806233214,-500.0,9.896e-05,2]
[348846966,1736806233226,-500.0,9.896e-05,2]
[348846968,1736806233236,-503.55491764,9.896e-05,2]
[348846970,1736806233245,-500.0,9.896e-05,2]
[348846972,1736806233255,-503.29134855,9.896e-05,2]
[348846974,1736806233264,-500.0,9.896e-05,2]
[348846975,1736806233273,-500.0,9.896e-05,2]
[348846977,1736806233283,-500.0,9.896e-05,2]
[348846978,1736806233292,-500.0,9.896e-05,2]
[348846979,1736806233302,-500.0,9.896e-05,2]
[348846980,1736806233311,-500.0,9.896e-05,2]
[348846981,1736806233320,-556.44,9.896e-05,2]
[348846982,1736806233331,-464.38849741,9.896e-05,2]
[348846983,1736806233340,-500.0,9.896e-05,2]
[348846984,1736806233350,-500.0,9.896e-05,2]
[348846985,1736806233359,-500.0,9.896e-05,2]
[348846986,1736806233370,-500.0,9.896e-05,2]
[348846987,1736806233380,-500.0,9.896e-05,2]
[348846988,1736806233392,-500.0,9.896e-05,2]
[348846989,1736806233404,-500.0,9.896e-05,2]
[348846990,1736806233413,-568.85732154,9.896e-05,2]
[348846991,1736806233423,-500.0,9.896e-05,2]
[348846992,1736806233434,-500.0,9.896e-05,2]
[348846993,1736806233443,-500.0,9.896e-05,2]